bitfinex-derivatives/quotes_BNBF0:USTF0_20250128
["timestamp","ask_amount","ask_price","bid_price","bid_amount"]
[1738051740006,0.29540788,677.03,675.53,0.27161856]
[1738051740206,0.29540788,677.03,675.5,0.27161856]
[1738051740503,0.29540788,677.03,675.51,0.27161856]
[1738051740704,0.29540788,677.03,675.52,0.27161856]
[1738051740909,0.29540788,677.03,675.49,0.29608136]
[1738051740910,0.29540788,677.03,675.5,0.27161856]
[1738051741107,0.29540788,677.03,675.51,0.27161856]
[1738051741309,0.29540788,677.03,675.52,0.27161856]
[1738051741506,0.29540788,677.03,675.5,0.27161856]
[1738051741710,0.29540788,677.03,675.51,0.27161856]
[1738051742006,0.24290731,677.02,675.53,0.29606383]
[1738051742209,0.29540788,677.03,675.54,0.27161856]
[1738051742409,0.29540788,677.03,675.55,0.27161856]
[1738051742610,0.29540788,677.03,675.54,0.27161856]
[1738051742910,0.29540788,677.03,675.56,0.29605068]
[1738051743113,0.29540788,677.03,675.57,0.27161856]
[1738051743307,0.29540788,677.03,675.59,0.29603753]
[1738051743609,0.29540788,677.03,675.6,0.27162572]
[1738051743806,0.29540788,677.03,675.62,0.29602439]
[1738051744211,0.29540788,677.03,675.63,0.27162572]
[1738051744506,0.29540788,677.03,675.64,0.29601562]
[1738051745006,0.29540788,677.03,675.65,0.27162572]
[1738051746312,0.29540788,677.03,675.66,0.29600686]
[1738051746511,0.29540788,677.03,675.67,0.27162572]
[1738051746710,0.29540788,677.03,675.68,0.2959981]
[1738051747007,0.29540788,677.03,675.69,0.27162572]
[1738051747205,0.29540788,677.03,675.7,0.29598934]
[1738051747406,0.29540788,677.03,675.71,0.27162572]
[1738051748012,0.29540788,677.03,675.72,0.29598058]
[1738051748312,0.29540788,677.03,675.73,0.27162572]
[1738051748518,0.29540788,677.03,675.74,0.29597182]
[1738051748715,0.29540788,677.03,675.74,0.56757907]
[1738051748916,0.29540788,677.03,675.75,0.27160725]
[1738051749219,0.29540788,677.03,675.76,0.29596306]
[1738051749420,0.29540788,677.03,675.77,0.27160725]
[1738051749617,0.29540788,677.03,675.78,0.2959543]
[1738051749917,0.29540788,677.03,675.79,0.27160725]
[1738051750118,0.29540788,677.03,675.8,0.29594554]
[1738051750312,0.29540788,677.03,675.81,0.27160725]
[1738051750513,0.29540788,677.03,675.82,0.27163983]
[1738051750716,0.29540788,677.03,675.83,0.27163983]
[1738051751014,0.29540788,677.03,675.84,0.27163983]
[1738051751221,0.29540788,677.03,675.81,0.27163983]
[1738051751422,0.29540788,677.03,675.8,0.29594554]
[1738051751423,0.29540788,677.03,675.85,0.27163983]
[1738051751621,0.29540788,677.03,675.86,0.27163983]
[1738051751821,0.29540788,677.03,675.8,0.29594554]
[1738051751822,0.29540788,677.03,675.87,0.27163983]
[1738051752022,0.29540788,677.03,675.88,0.27163983]
[1738051752323,0.29540788,677.03,675.89,0.27162756]
[1738051752621,0.29540788,677.03,675.9,0.27162756]
[1738051752822,0.29540788,677.03,675.81,0.27162756]
[1738051753024,0.29540788,677.03,675.82,0.27162756]
[1738051753218,0.29540788,677.03,675.81,0.27162756]
[1738051753422,0.29540788,677.03,675.82,0.27162756]
[1738051753624,0.29540788,677.03,675.83,0.27162756]
[1738051753921,0.29540788,677.03,675.8,0.29594554]
[1738051753922,0.29540788,677.03,675.81,0.27162756]
[1738051754120,0.29540788,677.03,675.82,0.27162756]
[1738051754322,0.29540788,677.03,675.81,0.27162756]
[1738051754516,0.29540788,677.03,675.83,0.27162756]
[1738051754717,0.29540788,677.03,675.8,0.29594554]
[1738051754718,0.29540788,677.03,675.84,0.27162756]
[1738051754916,0.29540788,677.03,675.81,0.27162756]
[1738051761934,0.29540788,677.03,675.82,0.29593678]
[1738051762329,0.29540788,677.03,675.83,0.27162756]
[1738051762526,0.29540788,677.03,675.84,0.29592803]
[1738051762726,0.29540788,677.03,675.85,0.27162756]
[1738051762931,0.29540788,677.03,675.86,0.29591927]
[1738051763127,0.29540788,677.03,675.87,0.27162756]
[1738051764535,0.29540788,677.03,675.88,0.27161041]
[1738051764834,0.29540788,677.03,675.86,0.29591927]
[1738051764835,0.29540788,677.03,675.89,0.27161041]
[1738051765231,0.29540788,677.03,675.9,0.27161041]
[1738051765436,0.29540788,677.03,675.87,0.27161041]
[1738051765631,0.29540788,677.03,675.88,0.27161041]
[1738051765835,0.29540788,677.03,675.87,0.27161041]
[1738051766037,0.29540788,677.03,675.88,0.27161041]
[1738051766236,0.29540788,677.03,675.87,0.27161041]
[1738051766437,0.29540788,677.03,675.88,0.27161041]
[1738051766737,0.29540788,677.03,675.89,0.56751654]
[1738051767039,0.29540788,677.03,675.9,0.27161041]
[1738051769338,0.29540788,677.03,675.91,0.29589738]
[1738051769538,0.29540788,677.03,675.92,0.27161041]
[1738051769734,0.29540788,677.03,675.91,0.29589738]
[1738051770033,0.29540788,677.03,675.92,0.27157417]
[1738051770733,0.29540788,677.03,675.93,0.27157431]
[1738051770934,0.29540788,677.03,675.94,0.27157431]
[1738051771134,0.29540788,677.03,675.92,0.27157431]
[1738051771437,0.29540788,677.03,675.93,0.27157431]
[1738051771636,0.29540788,677.03,675.92,0.27157431]
[1738051771935,0.29540788,677.03,675.93,0.27157431]
[1738051772238,0.29540788,677.03,675.94,0.27157431]
[1738051772437,0.29540788,677.03,675.95,0.27157431]
[1738051772737,0.29540788,677.03,675.91,0.29589738]
[1738051772738,0.29540788,677.03,675.96,0.27157431]
[1738051772937,0.29540788,677.03,675.97,0.27157431]
[1738051773137,0.29540788,677.03,675.92,0.27157431]
[1738051773338,0.29540788,677.03,675.93,0.27157431]
[1738051773534,0.29540788,677.03,675.92,0.27157431]
[1738051773734,0.29540788,677.03,675.93,0.27157431]
[1738051775136,0.29540788,677.03,675.94,0.27156656]
[1738051775334,0.29540788,677.03,675.93,0.27156656]
[1738051775540,0.29540788,677.03,675.95,0.27156656]
[1738051775838,0.29540788,677.03,675.96,0.27156656]
[1738051776040,0.29540788,677.03,675.93,0.27156656]
[1738051776241,0.29540788,677.03,675.94,0.27156656]
[1738051776633,0.29540788,677.03,675.95,0.27156656]
[1738051776834,0.29540788,677.03,675.93,0.27156656]
[1738051777035,0.29540788,677.03,675.94,0.27157359]
[1738051777241,0.29540788,677.03,675.95,0.27157359]
[1738051777439,0.29540788,677.03,675.93,0.27157359]
[1738051777637,0.29540788,677.03,675.94,0.27157359]
[1738051777837,0.29540788,677.03,675.93,0.27157359]
[1738051778037,0.29540788,677.03,675.94,0.27157359]
[1738051778237,0.29540788,677.03,675.95,0.27157359]
[1738051778539,0.29540788,677.03,675.96,0.27157359]
[1738051778835,0.29540788,677.03,675.97,0.27157359]
[1738051779035,0.29540788,677.03,675.93,0.27157359]
[1738051779641,0.29540788,677.03,675.97,1.10572116]
[1738051780336,0.29540788,677.03,675.98,0.27157359]
[1738051781436,0.29540788,677.03,675.97,1.10572116]
[1738051781636,0.29540788,677.03,675.98,0.27156075]
[1738051781836,0.29540788,677.03,676.0,1.10572116]
[1738051782037,0.29540788,677.03,676.01,0.27156075]
[1738051782739,0.29540788,677.03,675.92,0.295893]
[1738051782740,0.29540788,677.03,675.93,0.27156075]
[1738051782937,0.29540788,677.03,675.94,0.567445]
[1738051783137,0.29540788,677.03,675.95,0.27156075]
[1738051783541,0.29540788,677.03,675.95,0.56744062]
[1738051783738,0.53815893,684.49,675.96,0.27156075]
[1738051783941,0.29435139,679.46,675.96,0.27156075]
[1738051784139,0.24284317,679.45,675.96,0.27156075]
[1738051784343,0.24284317,679.44,675.96,0.27156075]
[1738051784542,0.24284317,679.43,675.96,0.27156075]
[1738051784744,0.24284317,679.42,675.96,0.27156075]
[1738051785044,0.24284317,679.41,675.96,0.27156075]
[1738051785344,0.24284317,679.4,675.97,0.29587111]
[1738051785545,0.29445106,679.23,675.98,0.27156075]
[1738051785743,0.24284317,679.22,675.98,0.27156075]
[1738051785945,0.24284317,679.21,675.98,0.27156075]
[1738051786141,0.24284317,679.2,675.98,0.27156075]
[1738051786343,0.29445106,679.23,675.98,0.27156075]
[1738051786344,5.93249013,679.19,675.99,0.29586236]
[1738051786542,5.93249013,679.18,676.0,0.27156075]
[1738051786742,0.29445106,679.23,675.99,0.29586236]
[1738051786743,0.29453779,679.03,675.99,0.29586236]
[1738051787045,5.93250629,679.02,676.0,0.27155278]
[1738051787245,5.93250629,679.01,676.0,0.27155278]
[1738051787540,5.93250629,679.0,676.0,0.27155278]
[1738051787839,8.44105484,678.99,676.0,0.27155278]
[1738051788044,5.93250629,678.98,676.0,0.27155278]
[1738051788241,5.93250629,678.97,676.0,0.27155278]
[1738051788440,0.29453779,679.03,676.0,0.27155278]
[1738051788441,8.44105484,678.96,676.0,0.27155278]
[1738051788644,5.93250629,678.95,676.0,0.27155278]
[1738051788841,5.93250629,678.94,676.0,0.27155278]
[1738051789045,5.93250629,678.93,676.0,0.27155278]
[1738051789247,0.29464193,678.79,676.0,0.27155278]
[1738051789544,0.24285933,678.78,676.0,0.56741076]
[1738051789742,1.54142582,679.63,676.0,0.56741076]
[1738051789743,0.29470271,678.65,676.01,0.27155278]
[1738051789940,0.24285933,678.64,676.01,0.27155278]
[1738051790143,0.29476352,678.51,676.01,0.27155278]
[1738051790342,0.24285933,678.5,676.01,0.27155278]
[1738051790545,0.29482001,678.38,676.01,0.56740639]
[1738051790742,0.24285933,678.37,676.01,0.29585361]
[1738051791641,0.24285933,678.36,676.01,0.29585361]
[1738051791845,0.24285933,678.35,676.01,0.29585361]
[1738051792045,0.24285933,678.34,676.01,0.29585361]
[1738051792243,0.29488521,678.23,676.01,0.29585361]
[1738051792443,0.24285933,678.22,676.01,0.29585361]
[1738051792747,0.29493739,678.11,676.01,0.29585361]
[1738051792944,0.24285933,678.1,676.01,0.29585361]
[1738051794248,0.24285656,678.09,676.01,0.29585361]
[1738051794448,0.24285656,678.08,676.01,0.29585361]
[1738051794644,1.54639175,678.09,676.01,0.29585361]
[1738051794848,0.24285656,678.08,676.01,0.29585361]
[1738051795846,0.24285656,678.08,676.02,0.27155833]
[1738051796848,0.24285656,678.08,676.01,0.29585361]
[1738051797248,0.24285656,678.07,676.02,0.27156033]
[1738051797549,0.24285656,678.08,676.02,0.27156033]
[1738051797749,0.24285656,678.07,676.02,0.27156033]
[1738051797947,0.24285656,678.08,676.02,0.27156033]
[1738051798148,0.24285656,678.07,676.02,0.27156033]
[1738051798350,0.24285656,678.08,676.02,0.27156033]
[1738051798545,0.24285656,678.07,676.02,0.27156033]
[1738051798749,0.24285656,678.06,676.02,0.27156033]
[1738051798948,0.24285656,678.05,676.02,0.27156033]
[1738051799251,0.24285656,678.04,676.02,0.27156033]
[1738051799449,0.24285656,678.03,676.02,0.27156033]
[1738051799649,0.24285656,678.08,676.02,0.27156033]
[1738051799847,0.24285656,678.07,676.02,0.27156033]
[1738051800152,0.24285656,678.06,676.02,0.27156033]
[1738051800447,0.24285656,678.05,676.02,0.27156033]
[1738051800648,0.24285656,678.08,676.02,0.27156033]
[1738051800849,0.24285656,678.07,676.02,0.27156033]
[1738051801048,0.24285656,678.08,676.02,0.27156033]
[1738051801348,0.24285656,678.07,676.02,0.27156033]
[1738051801548,0.29499395,677.98,676.02,0.27156033]
[1738051801749,0.24285656,677.97,676.02,0.27156033]
[1738051802049,0.24290869,677.96,676.03,0.27155515]
[1738051802247,0.24290869,677.95,676.04,0.27155515]
[1738051802447,0.29499395,677.98,676.01,0.29585361]
[1738051802448,0.24290869,677.94,676.05,0.27155515]
[1738051802651,0.29502006,677.92,676.02,0.27155515]
[1738051802850,0.24290869,677.91,676.02,0.27155515]
[1738051803054,0.24290869,677.9,676.02,0.27155515]
[1738051803253,0.24290869,677.89,676.02,0.27155515]
[1738051803552,0.24290869,677.88,676.02,0.27155515]
[1738051803754,0.24290869,677.91,676.02,0.27155515]
[1738051803951,0.24290869,677.9,676.02,0.27155515]
[1738051804156,0.24290869,677.89,676.02,0.27155515]
[1738051804450,0.24290869,677.88,676.02,0.27155515]
[1738051804654,0.24290869,677.87,676.02,0.27155515]
[1738051804853,0.29502006,677.92,676.01,0.29585361]
[1738051805154,0.24298033,677.91,676.02,0.27155601]
[1738051805354,0.24298033,677.9,676.02,0.27155601]
[1738051805652,0.29503746,677.88,676.02,0.27155601]
[1738051805854,0.24298033,677.87,676.02,0.27155601]
[1738051806051,0.24298033,677.86,676.02,0.27155601]
[1738051806254,0.24299401,677.85,676.03,0.27154121]
[1738051806454,0.24299401,677.84,676.04,0.27154121]
[1738051806653,0.24299401,677.84,676.05,0.27154121]
[1738051806954,0.24299401,677.83,676.06,0.27154121]
[1738051807158,0.24299401,677.82,676.07,0.27154121]
[1738051807457,0.24299401,677.81,676.08,0.27154121]
[1738051807654,0.24303371,677.8,676.09,0.27154007]
[1738051807858,0.24303371,677.79,676.1,0.27154007]
[1738051808161,0.24303371,677.78,676.11,0.27154007]
[1738051808357,0.24303371,677.77,676.02,0.27154007]
[1738051808559,0.24303371,677.76,676.01,0.29585361]
[1738051808756,0.24303371,677.78,676.01,0.29585361]
[1738051809055,0.24303371,677.77,676.01,0.29585361]
[1738051809556,0.29509406,677.75,676.01,0.29585361]
[1738051813057,0.29509406,677.75,669.48,0.59468785]
[1738051813464,1.09449626,677.14,676.16,1.10678253]
[1738051813859,0.29536425,677.13,675.96,1.10678253]
[1738051814465,0.29536425,677.13,674.27,0.29661708]
[1738051824471,1.54412173,677.12,674.27,0.29661708]
[1738051824771,0.29537734,677.1,674.27,0.29661708]
[1738051828369,0.29537734,677.1,674.28,0.27178012]
[1738051828977,0.29537734,677.1,675.19,1.10048945]
[1738051829279,0.29537734,677.1,675.2,0.29620853]
[1738051832081,0.24303371,677.09,675.2,0.29620853]
[1738051832277,0.29539043,677.07,675.21,0.27178012]
[1738051832476,0.24303371,677.06,675.21,0.27178012]
[1738051834981,0.24303371,677.06,675.23,0.29619537]
[1738051835180,1.5439105,677.05,675.24,0.27178012]
[1738051835379,0.24303371,677.04,675.24,0.27178012]
[1738051836683,0.29540788,677.03,675.26,0.29618221]
[1738051836979,0.24303371,677.02,675.27,0.27178012]
[1738051837179,0.24303371,677.02,675.28,0.29617343]
[1738051837378,0.24303371,677.02,675.29,0.27178012]
[1738051837582,0.24303371,677.02,675.3,0.29616466]
[1738051837881,0.24303371,677.02,675.31,0.27178012]
[1738051838183,0.29541661,677.01,675.32,0.29615589]
[1738051838478,0.24303371,677.0,675.33,0.27178012]
[1738051838680,0.29542533,676.99,675.34,0.29614712]
[1738051839079,0.24293187,676.98,675.35,0.27175617]
[1738051839279,0.24293187,676.98,675.36,0.29613835]
[1738051839482,0.24293187,676.98,675.37,0.27175617]
[1738051840580,0.24293187,676.98,675.38,0.29612958]
[1738051840881,0.29543406,676.97,675.38,0.29612958]
[1738051842285,0.24293187,676.96,675.39,0.27175617]
[1738051842486,0.29544279,676.95,675.39,0.27175617]
[1738051842681,0.24293187,676.94,675.39,0.27175617]
[1738051842886,0.29545152,676.93,675.39,0.27175617]
[1738051843089,0.24293187,676.92,675.39,0.27175617]
[1738051843389,0.29546025,676.91,675.39,0.27175617]
[1738051843582,0.24293187,676.9,675.39,0.27175617]
[1738051843785,0.29546898,676.89,675.39,0.27175617]
[1738051843984,0.24293187,676.88,675.39,0.27175617]
[1738051844185,0.29547771,676.87,675.39,0.27175617]
[1738051844390,0.24293187,676.86,675.39,0.27175617]
[1738051844590,0.29548644,676.85,675.39,0.27175617]
[1738051844791,0.24293187,676.84,675.39,0.27175617]
[1738051844991,0.29549517,676.83,675.39,0.27175617]
[1738051845291,0.24293187,676.82,675.39,0.27175617]
[1738051845590,0.2955039,676.81,675.39,0.27175617]
[1738051845794,0.24293187,676.8,675.39,0.27175617]
[1738051845993,0.29551264,676.79,675.39,0.27175617]
[1738051846193,0.24293187,676.78,675.39,0.27175617]
[1738051846391,0.53844887,676.78,675.39,0.27175617]
[1738051846592,0.24293187,676.77,675.39,0.27175617]
[1738051847693,0.295517,676.78,675.39,0.27175617]
[1738051848693,0.295517,676.78,675.47,1.10554874]
[1738051848893,0.24283936,676.77,675.48,0.27175617]
[1738051850590,0.24283936,676.77,675.39,0.27175617]
[1738051850795,0.24283936,676.77,675.4,0.56787698]
[1738051850992,0.24283936,676.77,675.41,0.27175617]
[1738051851392,0.24283936,676.77,675.42,0.29611204]
[1738051851697,0.24283936,676.77,675.43,0.27175617]
[1738051851998,0.24283936,676.77,675.44,0.29610328]
[1738051852199,0.24283936,676.77,675.45,0.27175617]
[1738051855093,0.295517,676.78,675.44,0.29610328]
[1738051855397,0.295517,676.78,675.45,0.27175268]
[1738051857095,0.295517,676.78,675.46,0.27174692]
[1738051857394,0.295517,676.78,675.47,0.27174692]
[1738051857693,0.295517,676.78,675.48,0.27174692]
[1738051857897,0.295517,676.78,675.49,0.27174692]
[1738051858098,0.295517,676.78,675.5,0.27174692]
[1738051858297,0.295517,676.78,675.45,0.27174692]
[1738051858495,0.295517,676.78,675.44,0.29610328]
[1738051858698,0.295517,676.78,675.45,0.27176071]
[1738051860299,0.295517,676.78,675.44,0.29610328]
[1738051861196,1.09385377,676.72,675.59,1.10782235]
[1738051861803,1.54409318,676.71,675.59,1.10782235]
[1738051862005,1.54409318,676.71,675.44,0.29610328]
[1738051862303,0.295517,676.78,675.44,0.29610328]
[1738051863104,0.295517,676.78,675.45,0.27175814]
[1738051863300,0.295517,676.78,675.44,0.29610328]
[1738051864004,0.295517,676.78,675.45,0.27177014]
[1738051865005,0.295517,676.78,675.44,0.29610328]
[1738051865201,0.295517,676.78,675.45,0.27176765]
[1738051867810,1.54405321,676.77,675.45,0.27176765]
[1738051868912,0.29552574,676.76,675.45,0.27176765]
[1738051876010,0.29552574,676.76,675.47,1.10762394]
[1738051879714,1.09347053,676.66,675.55,1.10762394]
[1738051880013,0.29557815,676.64,675.55,1.10762394]
[1738051882615,0.29557815,676.64,675.45,0.27176765]
[1738051885211,0.2427058,676.63,675.21,1.54430445]
[1738051885414,0.29558688,676.62,675.21,1.54430445]
[1738051885812,0.2427058,676.61,675.21,1.54430445]
[1738051886016,0.29559562,676.6,675.21,1.54430445]
[1738051886215,0.2427058,676.59,675.21,1.54430445]
[1738051886412,0.29560436,676.58,675.21,1.54430445]
[1738051886616,0.2427058,676.57,675.21,1.54430445]
[1738051887813,0.2956131,676.56,675.21,1.54430445]
[1738051888116,0.2427058,676.55,675.22,0.2718932]
[1738051888319,0.29562184,676.54,675.21,1.54430445]
[1738051888620,0.2427058,676.53,675.21,1.54430445]
[1738051889016,0.29563058,676.52,675.22,0.27189389]
[1738051889216,0.2427058,676.51,675.21,1.54430445]
[1738051889814,0.2427058,676.51,674.95,1.10389324]
[1738051890018,0.2427058,676.51,674.96,0.56822172]
[1738051890216,0.2427058,676.51,674.97,0.27190787]
[1738051890619,0.2427058,676.51,674.98,1.54485289]
[1738051890818,1.54485289,676.5,674.99,0.27190787]
[1738051891017,0.2427058,676.49,674.99,0.27190787]
[1738051891622,0.24267819,676.48,675.0,0.27190175]
[1738051891821,0.24267819,676.49,674.99,0.27190175]
[1738051892128,0.24267819,676.49,674.98,1.54485289]
[1738051892129,0.24267819,676.48,675.0,0.27190175]
[1738051892318,0.24267819,676.49,674.99,0.27190175]
[1738051892517,0.24267819,676.48,675.0,0.56819804]
[1738051892723,0.24267819,676.48,675.01,0.27190175]
[1738051892724,0.29564806,676.48,675.01,0.27190175]
[1738051893018,0.24267819,676.47,675.01,0.56819365]
[1738051893220,0.24267819,676.47,675.02,0.56818926]
[1738051893420,0.24267819,676.47,675.03,0.27190175]
[1738051893620,0.2956568,676.46,675.03,0.27190175]
[1738051893822,0.24267819,676.45,675.03,0.27190175]
[1738051894321,0.24267819,676.45,675.04,1.10290795]
[1738051894526,0.29566554,676.44,675.05,0.27190175]
[1738051894725,0.24267819,676.43,675.05,0.27190175]
[1738051895023,0.29567428,676.42,675.05,0.27190175]
[1738051895424,0.24267819,676.41,675.05,0.27190175]
[1738051895624,0.24267819,676.41,675.03,0.27190175]
[1738051895818,0.24267084,676.4,675.04,0.27191556]
[1738051896124,0.24267084,676.39,675.05,0.27191556]
[1738051896426,0.24267084,676.38,675.06,0.27191556]
[1738051896624,0.24267084,676.41,675.03,0.27191556]
[1738051896820,0.24267084,676.4,675.04,0.27191556]
[1738051897023,0.24267084,676.4,675.02,0.29628751]
[1738051897024,0.24267084,676.4,675.03,0.27191556]
[1738051897224,0.24267084,676.4,675.04,0.27191556]
[1738051897725,0.24267084,676.4,675.05,0.27191556]
[1738051898024,0.24267084,676.4,675.06,0.27191556]
[1738051898225,0.24267084,676.4,675.03,0.27191556]
[1738051898423,0.24267084,676.4,675.04,0.27191556]
[1738051898622,0.24267084,676.4,675.05,0.27191556]
[1738051898825,0.24267084,676.4,675.06,0.27191556]
[1738051899125,0.24267084,676.4,675.07,0.27191556]
[1738051899326,0.24267084,676.4,675.08,0.27191556]
[1738051899626,0.24267084,676.4,675.09,0.27191556]
[1738051899825,0.24267084,676.4,675.1,0.27191556]
[1738051900124,0.24267084,676.4,675.11,0.27191556]
[1738051900327,0.24268576,676.39,675.12,0.27190336]
[1738051900625,0.24268576,676.38,675.13,0.27190336]
[1738051900821,0.24268576,676.4,675.04,1.54488147]
[1738051901026,0.24268576,676.37,675.14,0.27190336]
[1738051901228,0.24268576,676.36,675.15,0.27190336]
[1738051901527,0.24268576,676.35,675.16,0.27190336]
[1738051901720,0.24268576,676.4,675.05,0.27190336]
[1738051901922,0.24268576,676.4,675.06,0.27190336]
[1738051902231,0.29568302,676.4,675.04,1.54488147]
[1738051902431,0.24269769,676.39,675.05,0.27190514]
[1738051902626,0.53838508,676.39,675.05,0.27190514]
[1738051902826,0.24269769,676.38,675.05,0.27190514]
[1738051904026,0.24269928,676.37,675.06,0.271907]
[1738051904330,0.24269928,676.36,675.07,0.271907]
[1738051904524,0.24269928,676.35,675.08,0.271907]
[1738051904728,0.24269928,676.38,675.05,0.271907]
[1738051904931,0.24269952,676.37,675.06,0.271907]
[1738051905131,0.24269952,676.36,675.07,0.271907]
[1738051905333,0.29568739,676.39,675.08,0.271907]
[1738051905334,0.24269952,676.35,675.08,0.271907]
[1738051905634,0.24269952,676.35,675.04,1.54488147]
[1738051905635,0.29568739,676.39,675.04,1.54488147]
[1738051905934,0.24272399,676.38,675.05,0.27190639]
[1738051906532,0.29568739,676.39,675.04,1.54488147]
[1738051906728,0.24270517,676.38,675.05,0.27191107]
[1738051909330,0.29568739,676.39,675.04,1.54488147]
[1738051909536,0.24269888,676.38,675.05,0.27191024]
[1738051911033,0.29568739,676.39,675.04,1.54488147]
[1738051911329,0.2427015,676.38,675.05,0.27190643]
[1738051911930,0.24269405,676.37,675.06,0.27190953]
[1738051912130,0.24269405,676.38,675.05,0.27190953]
[1738051912327,0.24269405,676.37,675.06,0.27190953]
[1738051912527,0.24269405,676.38,675.05,0.27190953]
[1738051912731,0.24269405,676.37,675.06,0.27190953]
[1738051913031,0.24269405,676.37,675.04,1.54488147]
[1738051913032,0.24269769,676.36,675.07,0.27190492]
[1738051913235,0.24269769,676.38,675.05,0.27190492]
[1738051913433,0.29568739,676.39,675.06,0.27190492]
[1738051913434,0.24269769,676.37,675.06,0.27190492]
[1738051913631,0.24269769,676.38,675.05,0.27190492]
[1738051913836,0.24269769,676.37,675.06,0.27190492]
[1738051914034,0.24269769,676.38,675.05,0.27190492]
[1738051914232,0.24269769,676.37,675.06,0.27190492]
[1738051914436,0.24269769,676.36,675.07,0.27190492]
[1738051914638,0.24269769,676.38,675.05,0.27190492]
[1738051914932,0.24269769,676.37,675.06,0.27190492]
[1738051915133,0.24269769,676.36,675.07,0.27190492]
[1738051915333,0.24269769,676.35,675.08,0.27190492]
[1738051915536,0.24269769,676.38,675.05,0.27190492]
[1738051915837,0.24269769,676.37,675.06,0.27190492]
[1738051916137,0.24269769,676.37,675.04,1.54488147]
[1738051916138,0.24269769,676.37,675.07,0.27190492]
[1738051916333,0.24269769,676.37,675.08,0.27190492]
[1738051916535,0.24258882,676.36,675.09,0.27190968]
[1738051916737,0.24258882,676.37,675.05,0.27190968]
[1738051916932,0.24258882,676.36,675.06,0.27190968]
[1738051917134,0.24258882,676.37,675.05,0.27190968]
[1738051920541,0.29569177,676.38,675.05,0.27190968]
[1738051921339,0.29569177,676.38,675.04,1.54488147]
[1738051921542,0.29569177,676.38,675.05,0.2719027]
[1738051926346,1.09281201,676.25,675.27,1.10872898]
[1738051927153,0.29569177,676.38,675.02,0.29628751]
[1738051927452,0.29569177,676.38,675.03,0.2718932]
[1738051927650,0.29569177,676.38,675.02,0.29628751]
[1738051927851,0.29569177,676.38,675.03,0.27187916]
[1738051928847,0.29569177,676.38,675.04,0.27187064]
[1738051929051,0.29569177,676.38,675.03,0.27187064]
[1738051929250,0.29569177,676.38,675.04,0.27187064]
[1738051929449,0.29569177,676.38,675.03,0.27187064]
[1738051929652,0.29569177,676.38,675.04,1.81660924]
[1738051929852,0.29569177,676.38,675.05,0.27187064]
[1738051930453,0.29569177,676.38,675.04,1.5447386]
[1738051930650,0.29569177,676.38,675.05,0.27187063]
[1738051931956,0.29569177,676.38,675.06,0.29626996]
[1738051933159,0.29569177,676.38,675.1,1.10843061]
[1738051935754,0.29569177,676.38,675.1,1.40468301]
[1738051935954,0.29569177,676.38,675.1,0.2962524]
[1738051937760,0.29569177,676.38,675.11,0.2718682]
[1738051939563,0.29569177,676.38,675.1,0.2962524]
[1738051939763,0.29569177,676.38,675.11,0.27187245]
[1738051940367,0.29569177,676.38,675.15,1.10843061]
[1738051940563,0.29569177,676.38,675.16,0.27187245]
[1738051942465,0.29569177,676.38,675.17,0.27187245]
[1738051942666,0.29569177,676.38,675.18,0.27187245]
[1738051942867,0.29569177,676.38,675.14,0.27187245]
[1738051943068,0.29569177,676.38,675.15,0.27187245]
[1738051943268,0.29569177,676.38,675.14,0.27187245]
[1738051943464,0.29569177,676.38,675.15,0.27187245]
[1738051943769,1.54493862,676.37,675.13,1.10843061]
[1738051944068,0.29570051,676.36,675.13,1.10843061]
[1738051944864,0.29570051,676.36,675.21,1.10843061]
[1738051947470,0.29570051,676.36,675.1,0.2962524]
[1738051949773,0.29570051,676.36,675.11,0.27193764]
[1738051949965,0.29570051,676.36,675.1,0.2962524]
[1738051950166,0.29570051,676.36,675.11,0.27193658]
[1738051952880,0.29570051,676.36,675.1,0.2962524]
[1738051953478,0.24250318,676.35,675.11,0.27194696]
[1738051953774,0.29570925,676.34,675.11,0.27194696]
[1738051953972,0.24250729,676.33,675.12,0.27194658]
[1738051954171,0.295718,676.32,675.11,0.27194658]
[1738051954377,0.24250729,676.31,675.11,0.27194658]
[1738051955580,0.29572674,676.3,675.11,0.27194658]
[1738051955776,0.29572674,676.3,675.1,0.2962524]
[1738051956077,0.29572674,676.3,675.11,0.27194561]
[1738051956579,0.24250398,676.29,675.11,0.27194561]
[1738051956779,0.5382351,676.29,675.11,0.27194561]
[1738051956980,0.24250398,676.28,675.11,0.27194561]
[1738051957679,0.24251425,676.27,675.12,0.27194534]
[1738051957873,0.24251425,676.28,675.11,0.27194534]
[1738051958071,0.24251425,676.27,675.12,0.27194534]
[1738051958277,0.24251425,676.28,675.11,0.27194534]
[1738051958480,0.24251425,676.27,675.12,0.27194534]
[1738051958680,0.24251425,676.28,675.11,0.27194534]
[1738051958880,0.24251425,676.27,675.12,0.27194534]
[1738051959179,0.29573112,676.29,675.13,0.27194534]
[1738051959180,0.24251425,676.26,675.13,0.27194534]
[1738051959379,0.24251425,676.26,675.1,0.2962524]
[1738051959380,0.24251425,676.25,675.14,0.27194534]
[1738051959571,0.24251425,676.25,675.1,0.2962524]
[1738051959572,1.09110243,676.28,675.1,0.2962524]
[1738051961677,0.29573112,676.29,675.1,0.2962524]
[1738051988095,1.54519015,676.28,675.1,0.2962524]